Cogmind - Beta 14 @@@ ROGUE MODE // 2025.03.02 @ 13:25:39 Player: Happy Aspid Result: Destroyed by G-34 Mercenary with Small Laser Performance ------------- Evolutions (0) 0 Regions Visited (2) 400 Robots Destroyed (37) 185 Value Destroyed (740) 740 Prototype IDs (2) 40 Alien Tech Used (0) 0 Bonus (0) 0 TOTAL SCORE: 1365 Bonus ------- None Cogmind --------- Core Integrity 0/250 Matter 266/300 Energy 250/250 System Corruption 0% Temperature Cool (15) Movement Treading (240) Ox1 Location -10/Mines Parts ------- > --- POWER (1) -------- Ion Engine > --- PROPULSION (2) --- Light Treads Light Treads > --- UTILITY (2) ------ High-capacity Storage Unit Tractor Beam > --- WEAPON (2) ------- Autogun Autogun > --- INVENTORY (20) --- Light Ion Engine Light Treads Aluminum Leg Aluminum Leg Aluminum Leg Cryofiber Web Large Storage Unit High-capacity Matter Pod (81) High-capacity Matter Pod (0) Signal Interpreter Terrain Scanner Light Armor Plating Shield Generator Hacking Suite Tractor Beam Improved Trap Extractor (0/6) Autogun Autogun Mining Laser Enhanced Flamer Peak State ------------ > --- POWER ------------ Ion Engine > --- PROPULSION ------- Light Treads Light Treads > --- UTILITY ---------- High-capacity Storage Unit Tractor Beam > --- WEAPON ----------- Autogun Autogun > --- INVENTORY -------- Light Ion Engine Light Treads Aluminum Leg Aluminum Leg Aluminum Leg Cryofiber Web Large Storage Unit High-capacity Matter Pod High-capacity Matter Pod Signal Interpreter Terrain Scanner Light Armor Plating Shield Generator Hacking Suite Tractor Beam Improved Trap Extractor Autogun Autogun Datajack Enhanced Flamer [Rating: 12] Favorites ----------- Power Ion Engine Engine Ion Engine Propulsion Light Treads Treads Light Treads Wheel Wheel Utility High-capacity Storage Unit Device Tractor Beam Storage High-capacity Storage Unit Weapon Autogun Energy Gun Medium Laser Ballistic Gun Autogun Special Weapon Mining Laser Build | -11 -10 -10 ------- Run | Yrd Mat Min Slots Evolved . | . . . Power . | . . . Propulsion . | . . . Utility . | . . . Weapon . | . . . Parts Attached 25 | 7 13 5 Power 2 | 1 1 . Engine 2 | 1 1 . Core . | . . . Reactor . | . . . Propulsion 5 | 2 3 . Treads 3 | . 3 . Leg . | . . . Wheel 2 | 2 . . Hover . | . . . Flight . | . . . Utility 6 | 2 4 . Device 3 | 1 2 . Storage 3 | 1 2 . Processor . | . . . Hackware . | . . . Protection . | . . . Artifact . | . . . Weapon 12 | 2 5 5 Energy Gun 2 | 1 1 . Energy Cannon . | . . . Ballistic Gun 8 | 1 4 3 Ballistic Cannon . | . . . Launcher . | . . . Special Weapon 2 | . . 2 Impact Weapon . | . . . Slashing Weapon . | . . . Piercing Weapon . | . . . Special Melee Weapon . | . . . Unidentified Prototypes . | . . . Parts Lost 5 | . 5 . Power . | . . . Propulsion 2 | . 2 . Utility 1 | . 1 . Weapon 2 | . 2 . Highest Loss Streak 3 | . 3 . To Critical Strikes . | . . . Average Slot Usage (%) 96 | . 93 100 Engine 14 | . 14 14 Treads 23 | . 18 28 Wheel 4 | . 8 . Device 13 | . 13 14 Storage 14 | . 14 14 Ballistic Gun 24 | . 22 27 Peak Build Rating 12 | 7 11 12 Average Rating 10 | 3 9 11 On Entrance 6 | . 7 11 Naked Turns . | . . . Heaviest Build 52 | 14 52 52 Greatest Support 40 | 20 40 40 Greatest Overweight (x) 4 | . 4 1 Average Overweight (x) 1 | . 1 1 Largest Inventory Capacity 20 | 8 20 20 Average Capacity 19 | 7 19 20 Most Carried 20 | 8 20 20 Average Carried 17 | 4 16 19 Final Capacity 20 | 8 20 20 Final Carried 20 | 7 20 20 Class Distribution -------------------- 100% | Mutant Dominant Class ---------------- Mutant | -10/Materials Mutant | -10/Mines Resources | -11 -10 -10 ----------- Run | Yrd Mat Min Matter Collected 1080 | 232 525 323 Remotely 581 | . 258 323 Salvage Created 1127 | 13 817 297 Parts 77 | 3 55 19 Haulers Intercepted 2 | . 2 . Recyclers Shooed 1 | . 1 . Parts Field Recycled . | . . . Retrieved Matter . | . . . Parts Self-Destructed . | . . . Prevented . | . . . Kills | -11 -10 -10 ------- Run | Yrd Mat Min Combat Hostiles Destroyed 26 | . 16 10 Guns 25 | . 16 9 Classes Destroyed 10 | 1 8 1 Worker 2 | . 1 1 Builder 2 | . 1 1 Tunneler 3 | 1 1 1 Hauler 2 | . 2 . Recycler 1 | . 1 . Operator 1 | . 1 . Watcher 2 | . 2 . Swarmer 9 | . 6 3 Grunt 15 | . 10 5 Assembled 2 | . . 2 Best Kill Streak 4 | 1 4 3 Combat Bots Only 3 | . 3 3 Max Kills in Single Turn 2 | 1 2 1 Gunslinging 1 | . 1 . Exploded . | . . . Melee . | . . . Uniques/NPCs Destroyed . | . . . Combat | -11 -10 -10 -------- Run | Yrd Mat Min Hostile Shots Fired 140 | . 108 32 Missed 37 | . 29 8 Damage Taken 1059 | . 745 314 Core 252 | . 148 104 Absorbed by Shields 148 | . 148 . Regen/Repaired (Parts) 62 | . 62 . Core Remaining (%) 100 | 100 . . Volleys Fired 134 | 1 91 42 Largest 2 | 2 2 2 Hottest 100 | 70 70 100 Shots Fired 226 | 2 155 69 Gun 211 | 2 155 54 Cannon . | . . . Launcher . | . . . Special 15 | . . 15 Kinetic 200 | 1 145 54 Thermal 26 | 1 10 15 Explosive . | . . . Electromagnetic . | . . . Robot Hit Streak 16 | 1 9 16 Robot Miss Streak 5 | . 5 4 Penetration Max . | . . . Secondary Targets 4 | . 4 . Max Gunslinging Chain 1 | . 1 . Shots Hit Robots 129 | 1 92 36 Core Hits 55 | 1 38 16 Critical Kills . | . . . Critical Parts Destroyed 1 | . 1 . Critical Strikes 2 | . 2 . Burn 1 | . 1 . Destroy 1 | . 1 . Melee Attacks . | . . . Impact . | . . . Slashing . | . . . Piercing . | . . . Sneak Attacks . | . . . Combat Hostiles . | . . . Follow-up Attacks . | . . . Damage Inflicted 1843 | 13 1277 553 Guns 1843 | 13 1277 553 Cannons . | . . . Explosions . | . . . Melee . | . . . Ramming . | . . . Kinetic 1732 | . 1179 553 Thermal 111 | 13 98 . Explosive . | . . . Electromagnetic . | . . . Impact . | . . . Slashing . | . . . Piercing . | . . . Highest Corruption . | . . . Average Corruption . | . . . Corruption Purged . | . . . Corruption Blocked . | . . . Overload Shots . | . . . Overflow Damage . | . . . Projectiles . | . . . Explosions . | . . . Melee . | . . . Knockbacks . | . . . Impact . | . . . Kinetic . | . . . Secondary . | . . . Self-Inflicted Damage . | . . . Shots . | . . . Rammed . | . . . Targets Rammed . | . . . Kicked . | . . . Crushed . | . . . Highest Temperature 226 | 30 226 100 Average Temperature 38 | 18 54 22 Received Heat Transfer 476 | . 389 87 Siege Activations . | . . . Robots Corrupted . | . . . Combat Hostiles . | . . . Parts Fried . | . . . Impact Corruptions . | . . . Robots Melted . | . . . Combat Hostiles . | . . . Parts Melted . | . . . Heat Transferred 407 | 37 370 . Parts Sabotaged . | . . . Parts Stolen . | . . . Parts Stripped . | . . . Power Chain Reactions . | . . . Alert | -11 -10 -10 ------- Run | Yrd Mat Min Peak Influence 212 | 5 212 152 Initial 52 | . 3 52 Average 72 | . 98 49 Maximum Alert Level 1 | . 1 . Low Security (%) 99 | 100 99 100 Level 1 . | . . . Level 2 . | . . . Level 3 . | . . . Level 4 . | . . . Level 5 . | . . . High Security . | . . . Max Security . | . . . Squads Dispatched 3 | . 3 . Investigation 2 | . 2 . Extermination . | . . . Reinforcement 1 | . 1 . Assault . | . . . Garrison . | . . . Intercept . | . . . Searches Triggered . | . . . Construction Impeded . | . . . Haulers Reinforced . | . . . Active Scanning Responses . | . . . Cargo Convoy Interrupts . | . . . Stealth | -11 -10 -10 --------- Run | Yrd Mat Min Distress Signals 2 | . 2 . Communications Jammed . | . . . Distress Signals . | . . . Times Spotted 36 | . 25 11 Peak Tracking Total 4 | . 4 3 Tactical Retreats 3 | . 1 2 Traps | -11 -10 -10 ------- Run | Yrd Mat Min Traps Triggered 3 | . 1 2 Indirectly . | . . . Trap Hack Attempts . | . . . Triggered . | . . . Disarmed . | . . . Reprogrammed 1 | . 1 . Reused . | . . . Traps Extracted . | . . . Installed . | . . . Triggered . | . . . Machines | -11 -10 -10 ---------- Run | Yrd Mat Min Machines Disabled 1 | . 1 . Max in Single Turn 1 | . 1 . Machines Repaired . | . . . Machines Dismantled . | . . . Machines Sabotaged . | . . . Overloaded Fab Kills . | . . . Hacking | -11 -10 -10 --------- Run | Yrd Mat Min Machines Accessed 7 | . 6 1 Terminals 5 | . 5 . Fabricators . | . . . Repair Stations 1 | . 1 . Recycling Units . | . . . Scanalyzers . | . . . Garrison Access . | . . . Total Hacks 29 | . 28 1 Successful 21 | . 20 1 Failed 8 | . 8 . Catastrophic . | . . . Database Lockouts . | . . . Manual 13 | . 13 . Terminals 25 | . 25 . Fabricators . | . . . Repair Stations 3 | . 3 . Recycling Units . | . . . Scanalyzers . | . . . Garrison Access . | . . . Terminal Hacks 10 | . 9 1 Part Schematic 1 | . 1 . Prototype ID Bank 1 | . 1 . Open Door 1 | . . 1 Terminal Index 1 | . 1 . Alert Level 1 | . 1 . Locate Traps 2 | . 2 . Reprogram Traps 1 | . 1 . Transport Status 1 | . 1 . Investigation Status 1 | . 1 . Fabricator Hacks . | . . . Repair Station Hacks 2 | . 2 . Scan Component 1 | . 1 . Repair 1 | . 1 . Recycling Unit Hacks . | . . . Scanalyzer . | . . . Garrison Access Hacks . | . . . Unauthorized Hacks 9 | . 9 . Terminals 8 | . 8 . Assimilate 3 | . 3 . Botnet 4 | . 4 . Operators 1 | . 1 . Fabricators . | . . . Repair Stations 1 | . 1 . Mechanics 1 | . 1 . Recycling Units . | . . . Scanalyzers . | . . . Garrison Access . | . . . Data Cores Recovered 1 | . 1 . Used . | . . . Hacking Detections 6 | . 6 . Full Trace Events 1 | . 1 . Feedback Events . | . . . Feedback Blocked . | . . . Robot Schematics Acquired . | . . . Robots Built . | . . . Authchips . | . . . Time . | . . . Total Robot Build Rating . | . . . Part Schematics Acquired 1 | . 1 . Parts Built . | . . . Authchips . | . . . Time . | . . . Total Part Build Rating . | . . . Parts Repaired 1 | . 1 . Time 32 | . 32 . Parts Recycled . | . . . Recycled Matter . | . . . Retrieved Matter . | . . . Retrieved Components . | . . . Parts Scanalyzed . | . . . Part Schematics Acquired . | . . . Parts Damaged . | . . . Bothacking | -11 -10 -10 ------------ Run | Yrd Mat Min Used RIF Installer . | . . . Robots Hacked . | . . . Non-combat . | . . . Combat . | . . . Robot Hacks Applied . | . . . Relay Couplers Released . | . . . Fabnet Peak Effective % . | . . . Robots Rewired . | . . . Allies Hacked . | . . . Hacks Repelled . | . . . Allies | -11 -10 -10 -------- Run | Yrd Mat Min Total Allies . | . . . Largest Group . | . . . Highest-Rated Group . | . . . Highest-Rated Ally . | . . . Total Orders . | . . . Ally Attacks . | . . . Total Damage . | . . . Kills . | . . . Allies Corrupted . | . . . Allies Melted . | . . . Intel | -11 -10 -10 ------- Run | Yrd Mat Min Robot Analysis Total . | . . . Derelict Logs Recovered 1 | . . 1 Drone Launches . | . . . Drone Recoveries . | . . . Exploration | -11 -10 -10 ------------- Run | Yrd Mat Min Turns Passed 2293 | 72 1157 1064 Spaces Moved 699 | 57 401 241 Core 2 | 2 . . Treads 498 | . 257 241 Legs . | . . . Wheels 199 | 55 144 . Hover . | . . . Flight . | . . . Fastest Speed 50 | 50 80 240 Average Speed 199 | 78 192 240 Slowest Speed 240 | 80 240 240 Overloaded Moves . | . . . Propulsion Burnouts . | . . . Robots Hopped . | . . . Cave-ins Triggered . | . . . Exploration Rate (%) 37 | 3 62 46 Regions Visited 2 Branch Regions 1 Pre-discovered Areas . | . . . Known Exits Taken . | . . . Unknown Exits Taken 2 | 1 1 . Scrap Searched . | . . . Spaces Dug . | . . . Terrain Destroyed 2 | . . 2 Melee . | . . . Projectile 2 | . . 2 AOE . | . . . Terrain Rammed . | . . . Walls Destroyed . | . . . Machines Disabled . | . . . Actions | -11 -10 -10 --------- Run | Yrd Mat Min Total 1376 | 82 654 640 Wait 461 | 2 116 343 Move 697 | 56 400 241 Hop . | . . . Pick Up 46 | 15 26 5 Fast Attach . | . . . Attach 14 | 7 6 1 Detach . | . . . Swap 11 | . 7 4 Drop 13 | 1 8 4 Fire 134 | 1 91 42 Melee . | . . . Ram . | . . . Kick . | . . . Crush . | . . . Escape Stasis . | . . . Rewire . | . . . Trap . | . . . Miscellaneous . | . . . Route ------- -11/Scrapyard -10/Materials (discovered 3 exits: [*Mat] / *Min x2) -10/Mines (discovered 2 exits: [*Mat x2]) History --------- Turn | Location | Event 2 | -11/Scrapyard | Met Revision 17 14 | -11/Scrapyard | Discovered new exit (range 16) 73 | -11/Scrapyard | Entered Materials 314 | -10/Materials | Build established: Mutant 458 | -10/Materials | Core integrity fell below 50% 482 | -10/Materials | Lost 3 parts (1n1u1w) 619 | -10/Materials | Discovered new exit (range 11) 801 | -10/Materials | Discovered new exit (range 9) 869 | -10/Materials | Repaired Autogun 1154 | -10/Materials | Discovered new exit (range 7) 1230 | -10/Materials | Entered Mines 1239 | -10/Mines | Met a Derelict who couldn't figure out how to use a Trap Extractor 1296 | -10/Mines | Learned Materials security intel 1352 | -10/Mines | Discovered new exit (range 7) 1376 | -10/Mines | A weapon hastily lodged in a ceiling crevice suddenly fell to the ground 1535 | -10/Mines | Discovered new exit (range 10) 1792 | -10/Mines | Core integrity fell below 20% 1814 | -10/Mines | Excavation squad dispatched 1814 | -10/Mines | A large section of the Mines collapsed 2064 | -10/Mines | Excavation squad dispatched 2294 | -10/Mines | Destroyed by G-34 Mercenary with Small Laser Last Messages --------------- 02134_ U-05 Engineer lays Concrete. 02145_ Dropped Datajack. 02145_ Acquired Mining Laser. 02146_ U-05 Engineer destroyed. 02147_ Acquired 14 matter. 02180_ as-46269 destroyed. 02181_ Acquired 20 matter. 02192_ U-05 Engineer lays Concrete. 02240_ T-07 Excavator is excavating. 02246_ G-34 Mercenary destroyed. 02247_ Acquired 41 matter. 02249_ T-07 Excavator is excavating. 02250_ T-07 Excavator destroyed. 02251_ Acquired 27 matter. 02264_ as-04836 destroyed. 02268_ Acquired 14 matter. 02272_ U-05 Engineer lays Concrete. 02283_ U-05 Engineer builds a Wall. 02290_ U-05 Engineer lays Concrete. 02293_ Destroyed Mining Laser. Map ----- +----------------------------------------------------+ | ?????????????????????????## ## ##????????? | | < ????????????????????????## #????????? | | ? ?????????#####?????????## #????????? | | ?# #?????????# #######??## #?????????? | | ?# ########### ##?# #?????????? | | ## ### ##?????????? | | ##??????????? | | ## ######### ## #???????##### | | ?# #???????# ### ### ## ##### ###?????# | | ?# #???????######?######?# ## #???# #?????# """ | | ?# #?????????????????????# ## #???# ###???# """ | | ## #?????????????????????# ## #???### # ##??# """ | | #?????????????????????# ## #?????# # #??# | | ####?????????????????????# ## #????## ##?# """ | | ???????????????#######???# ## ###### """ ### """ | | ?????????????? """" #???# """ =## """ | | ?????????????# """" #???# ######## """ [ == | | ?????????????# """" ##### #??????## ### """ | | ?????????????# #???????### ####?# """ | | ?????????????# #######?????????####????# """ | | ?????????????#########???????????????????????# | | ????????????????????####?????????????????????# | | ???????????????????### #????????????????????# | | ???????????????????##;#####??????????????????### # | | ???????????????????# # =| ###############??????# # | | ???????????????????# # u!@ =![ !==/gt * #?###??# # | | ??????????????????# ##== ############# ### ##?# # | | ??????????????????# #*####??????????# ## ### # | | ??????????????????# # #????????????# ## # # | | ??????????????????## ## ##????????????# | | ???????????????????### "#????????????######## | | ????????????????????# # #"#?????????????????## | | ????????????????????#######?????????????##### | | ????????????????????#??????????????????## | | ??????????????????????????????????????## # | | ?????????????????????????????????????## ## | | ????????????????????????????????????## ##? | | ???????????????????????????????????## #?? | | ???????????????????????????????????# #### #?? | | ???????????????????????????????????# ##??## #? | | ???????????????????????????????????####?????# # | | ????????????????????????????????????????????# | | ????????????????????????????????????????????## | | ?????????????????????????????????????????????##### | | ?????????????????????????????????????????????????? | | ?????????????????????????????????????????????????? | | ?????????????????????????????????????????????????? | | ?????????????????????????????????????????????????? | | ?????????????????????????????????????????????????? | | | +----------------------------------------------------+ Best States ------------- Heat Dissipation 25 Energy Generation 10 Energy Capacity 250 Matter Stores 300 Matter Capacity 300 Sight Range 16 Terrain Scan Density 10 Evasion (%) 44 Recoil Reduction 2 Item Schematics ----------------- Med. Laser | -10/Materials | Hacked Robot Schematics ------------------ None Fabricated ------------ Nothing Alien Tech Used ----------------- None Achievements -------------- None Challenges ------------ None Game ------ Seed CoilMediumBotcube Manual? 0 Play Time 00:17:51 Cumulative 198.4 hours Start 2025.03.01 @ 21:24:35 End 2025.03.02 @ 13:25:39 Sessions 2 Manual Loads 0 Difficulty Rogue Special Mode None Game No. 230 Rogue 230 Adventurer 0 Explorer 0 Win Type - Total 0 Types 0/0/0/0/0/0/0/0/0 Lore% 29 Gallery% 62 Achievement% 50 Wizard Run 0 Options --------- Layout 1 ASCII 0 Keyboard 0 Movement Mouse Keybinds 0 Fullscreen 1 Font 24/Smallcaps Map View 50x35 Zoom Use 0% Tactical HUD 1 Map Filters NONE Filters NONE Steam 1 RUN: b3c27a79-2955-4f7c-a8dc-e357128a3509